[Event "13th All African Rapid-ch Women 2024"]
[Site "Accra"]
[Date "2024.03.10"]
[Round "6.7"]
[White "Laubscher, Anzel"]
[Black "Vilhete, Vania Fausto Da T."]
[Result "1/2-1/2"]
[ECO "A05"]
[WhiteElo "1820"]
[BlackElo "1829"]
[Annotator "NA RC"]
[PlyCount "122"]
[EventDate "2024.03.07"]
[EventType "rapid"]
[EventCountry "GHA"]
[SourceTitle "playchess.com"]
[Source "ChessBase"]
[SourceQuality "1"]
[TimeControl "900+10"]

1. e4 {[%emt 0:00:01]} c5 {[%emt 0:00:01]} 2. Nf3 {[%emt 0:00:03]} d6 {[%emt 0:00:02]} 3. g3 {[%emt 0:00:02]} g6 {[%emt 0:00:13]} 4. Bg2 {[%emt 0:00:03]} Bg7 {[%emt 0:00:01]} 5. O-O {[%emt 0:00:06]} Nf6 {[%emt 0:00:02]} 6. Re1 {[%emt 0:00:16]} Nc6 {[%emt 0:00:10]} 7. c3 {[%emt 0:00:13]} O-O {[%emt 0:00:21]} 8. d3 {[%emt 0:01:02]} Qc7 {[%emt 0:00:19]} 9. Nbd2 {[%emt 0:00:23]} Nd7 {[%emt 0:00:52] A05: Übergänge in verschiedene Eröffnungen.} 10. Nc4 {[%emt 0:00:54]} b5 {[%emt 0:02:30]} 11. Ne3 {[%emt 0:00:44]} e6 {[%emt 0:00:14]} 12. h4 {[%emt 0:01:53]} Bb7 {[%emt 0:00:26]} 13. Ng4 {[%emt 0:00:43]} Nde5 {[%emt 0:00:40]} 14. Nfxe5 {[%emt 0:00:46]} Nxe5 {[%emt 0:00:08]} 15. Nxe5 {[%emt 0:00:41]} dxe5 {[%emt 0:01:22]} 16. h5 {[%emt 0:01:39]} Rad8 {[%emt 0:00:48]} 17. Qe2 {[%emt 0:00:51]} Qd7 {[%emt 0:02:46]} 18. Bg5 {[%emt 0:00:55]} f6 {[%emt 0:00:11]} 19. Be3 {[%emt 0:00:06]} Rc8 {[%emt 0:01:28]} 20. hxg6 {[%emt 0:00:15]} hxg6 {[%emt 0:00:04]} 21. Qg4 {[%emt 0:00:45]} Kf7 {[%emt 0:02:14]} 22. Rad1 {[%emt 0:00:22]} f5 {[%emt 0:01:02]} 23. Qe2 {[%emt 0:01:46]} Bf6 {[%emt 0:00:50]} 24. exf5 {[%emt 0:00:39]} exf5 {[%emt 0:00:21]} 25. f4 {[%emt 0:01:19]} exf4 {[%emt 0:00:43]} 26. gxf4 {[%emt 0:00:28]} Bxg2 {[%emt 0:00:23]} 27. Qxg2 {[%emt 0:00:08]} Qc6 {[%emt 0:00:11]} 28. Qxc6 {[%emt 0:00:45]} Rxc6 {[%emt 0:00:02]} 29. d4 {[%emt 0:00:20]} cxd4 {[%emt 0:00:10]} 30. Bxd4 {[%emt 0:00:03]} a6 {[%emt 0:00:19]} 31. Bxf6 {[%emt 0:00:16]} Kxf6 {[%emt 0:00:06]} 32. Rd4 {[%emt 0:00:47]} g5 {[%emt 0:00:11]} 33. fxg5+ {[%emt 0:00:04]} Kxg5 {[%emt 0:00:02]} 34. Re5 {[%emt 0:00:26]} Rcf6 {[%emt 0:00:30]} 35. Kf2 {[%emt 0:00:21]} Rh6 {[%emt 0:00:17]} 36. Ke3 {[%emt 0:00:18]} Rh2 {[%emt 0:00:03]} 37. Rd2 {[%emt 0:00:06]} Rxd2 {[%emt 0:00:05]} 38. Kxd2 {[%emt 0:00:01]} Kg4 {[%emt 0:00:03]} 39. Re6 {[%emt 0:00:09]} f4 {[%emt 0:00:08]} 40. Rxa6 {[%emt 0:00:09]} Kf3 {[%emt 0:00:08]} 41. Rd6 {[%emt 0:00:23]} Kf2 {[%emt 0:00:04]} 42. a4 {[%emt 0:00:36]} bxa4 {[%emt 0:00:03]} 43. Ra6 {[%emt 0:00:05]} Rb8 {[%emt 0:00:12]} 44. Rxa4 {[%emt 0:00:12]} f3 {[%emt 0:00:07]} 45. Kc2 {[%emt 0:00:19]} Kf1 {[%emt 0:00:06]} 46. Re4 {[%emt 0:00:08]} f2 {[%emt 0:00:03]} 47. Re7 {[%emt 0:00:11]} Rg8 {[%emt 0:00:05]} 48. Rf7 {[%emt 0:00:09]} Kg2 {[%emt 0:00:04]} 49. b4 {[%emt 0:00:04]} f1=Q 50. Rxf1 {[%emt 0:00:02]} Kxf1 {[%emt 0:00:06]} 51. c4 {[%emt 0:00:03]} Ke2 {[%emt 0:00:04]} 52. Kc3 {[%emt 0:00:04]} Rb8 {[%emt 0:00:09]} 53. c5 {[%emt 0:00:07]} Ke3 {[%emt 0:00:03]} 54. Kc4 {[%emt 0:00:03]} Ke4 {[%emt 0:00:01]} 55. b5 {[%emt 0:00:08]} Ke5 {[%emt 0:00:03]} 56. b6 {[%emt 0:00:08]} Ke6 {[%emt 0:00:01]} 57. Kb5 {[%emt 0:00:22]} Kd7 {[%emt 0:00:03]} 58. c6+ {[%emt 0:00:21]} Kc8 {[%emt 0:00:08]} 59. Kc5 {[%emt 0:00:05]} Rxb6 {[%emt 0:00:19]} 60. Kxb6 {[%emt 0:00:02]} Kb8 {[%emt 0:00:01]} 61. c7+ {[%emt 0:00:20]} Kc8 $11 {[%emt 0:00:10]} 1/2-1/2

[Event "13th All African Rapid-ch Women 2024"]
[Site "Accra"]
[Date "2024.03.10"]
[Round "6.8"]
[White "Ayiku, Angela Naa Amerley"]
[Black "Tsinjoviniavo, Aina Mahasambatra"]
[Result "0-1"]
[ECO "C79"]
[WhiteElo "1629"]
[BlackElo "1681"]
[Annotator "NA RC"]
[PlyCount "90"]
[EventDate "2024.03.07"]
[EventType "rapid"]
[EventCountry "GHA"]
[SourceTitle "playchess.com"]
[Source "ChessBase"]
[SourceQuality "1"]
[TimeControl "900+10"]

1. e4 {[%emt 0:00:08]} e5 {[%emt 0:00:05]} 2. Nf3 {[%emt 0:00:05]} Nc6 {[%emt 0:00:06]} 3. Bb5 {[%emt 0:00:06]} a6 {[%emt 0:00:02]} 4. Ba4 {[%emt 0:00:03]} Nf6 {[%emt 0:00:03]} 5. Nc3 {[%emt 0:00:03]} d6 {[%emt 0:00:24]} 6. O-O {[%emt 0:00:04]} Be7 {[%emt 0:00:03]} 7. h3 {[%emt 0:00:07]} O-O {[%emt 0:00:05]} 8. d3 {[%emt 0:00:03]} Be6 {[%emt 0:00:09]} 9. Bxc6 {[%emt 0:00:24]} bxc6 {[%emt 0:00:03]} 10. Be3 {[%emt 0:00:18]} Rb8 {[%emt 0:00:04]} 11. b3 {[%emt 0:00:03]} Nd7 {[%emt 0:00:28]} 12. Qd2 {[%emt 0:00:04]} d5 {[%emt 0:00:07]} 13. Rfe1 {[%emt 0:00:07]} d4 {[%emt 0:00:07]} 14. Bxd4 {[%emt 0:00:47]} exd4 {[%emt 0:00:03]} 15. Nxd4 {[%emt 0:00:02]} Ne5 {[%emt 0:00:51]} 16. Qe3 {[%emt 0:00:30]} Bd7 {[%emt 0:00:29]} 17. f4 {[%emt 0:00:13]} Ng6 {[%emt 0:00:08]} 18. Nf3 {[%emt 0:01:02]} Bd6 {[%emt 0:00:22]} 19. f5 {[%emt 0:00:27]} Ne5 {[%emt 0:00:08]} 20. Rf1 {[%emt 0:01:25]} Nxf3+ {[%emt 0:00:10]} 21. Rxf3 {[%emt 0:00:02]} Qf6 {[%emt 0:00:11]} 22. d4 {[%emt 0:00:22]} Bb4 {[%emt 0:00:15]} 23. e5 {[%emt 0:00:39]} Qd8 {[%emt 0:00:23]} 24. Rg3 {[%emt 0:00:03]} Bxf5 {[%emt 0:00:10]} 25. Qh6 {[%emt 0:00:31]} Qxd4+ {[%emt 0:00:12]} 26. Kh2 {[%emt 0:00:15]} Bg6 {[%emt 0:00:03]} 27. Ne2 {[%emt 0:00:32]} Qxa1 {[%emt 0:00:09]} 28. Qg5 {[%emt 0:00:19]} Rb5 {[%emt 0:00:15]} 29. Qg4 {[%emt 0:00:14]} Qxe5 {[%emt 0:00:12]} 30. Nf4 {[%emt 0:00:04]} Bd2 {[%emt 0:00:24]} 31. Nd3 {[%emt 0:00:45]} Qd6 {[%emt 0:00:00]} 32. h4 {[%emt 0:00:53]} Bc3 {[%emt 0:00:00]} 33. Qc4 {[%emt 0:01:09]} Be5 {[%emt 0:00:00]} 34. Nxe5 {[%emt 0:00:12]} Qxe5 {[%emt 0:00:03]} 35. Qxc6 {[%emt 0:00:20]} Rc5 {[%emt 0:00:20]} 36. Qxa6 {[%emt 0:00:47]} Rc3 {[%emt 0:00:04]} 37. Qe2 {[%emt 0:02:28]} Qxe2 {[%emt 0:00:08]} 38. Rxc3 {[%emt 0:00:03]} Qe5+ {[%emt 0:00:04]} 39. Rg3 {[%emt 0:00:03]} Bxc2 {[%emt 0:14:50]} 40. h5 {[%emt 0:06:08]} Qxh5+ {[%emt 0:14:56]} 41. Kg1 {[%emt 0:00:00]} Re8 {[%emt 0:00:00]} 42. Rf3 {[%emt 0:00:00]} Qc5+ {[%emt 0:00:00]} 43. Kf1 {[%emt 0:00:00]} Qb5+ {[%emt 0:00:00]} 44. Kf2 {[%emt 0:00:00]} Re2+ {[%emt 0:00:00]} 45. Kg3 {[%emt 0:00:00]} Qg5+ {[%emt 0:00:00]} 0-1